lending/lending_fUSD_20260306
["ID","MTS","AMOUNT","RATE_DAILY","PERIOD"]
[407771755,1772786991620,1240.94460915,0.00015888,2]
[407771756,1772786994288,6906.16245086,0.00015895,2]
[407771757,1772786994313,10000.0,0.00015895,2]
[407771758,1772786994336,10000.0,0.00015895,2]
[407771759,1772786994359,10000.0,0.00015895,2]
[407771760,1772786994383,10000.0,0.00015895,2]
[407771761,1772786994405,10000.0,0.00015895,2]
[407771762,1772786994428,10000.0,0.00015895,2]
[407771763,1772786994456,10000.0,0.00015895,2]
[407771764,1772786994480,10000.0,0.00015895,2]
[407771765,1772786994503,10000.0,0.00015895,2]
[407771766,1772786994528,9131.6138077,0.00015895,2]
[407771767,1772786994551,10000.01,0.00015895,2]
[407771768,1772786994574,10000.01,0.00015895,2]
[407771769,1772786994596,10000.01,0.00015895,2]
[407771770,1772786994618,10000.01,0.00015895,2]
[407771771,1772786994640,10000.01,0.00015895,2]
[407771772,1772786994664,10000.01,0.00015895,2]
[407771773,1772786994685,10000.01,0.00015895,2]
[407771774,1772786994708,10000.01,0.00015895,2]
[407771775,1772786994731,10000.01,0.00015895,2]
[407771776,1772787006268,-300.0,0.00015894,2]
[407771777,1772787006298,-300.0,0.00015894,2]
[407771778,1772787006327,-1200.0,0.00015894,2]
[407771779,1772787006422,250.0,0.00015894,2]
[407771780,1772787023246,509.0,0.00014,2]
[407771781,1772787030295,166.989957,0.00015277,7]
[407771783,1772787032282,-2732.10077041,0.00015895,2]
[407771787,1772787038327,-1382.06179791,0.00015895,2]
[407771788,1772787038338,-158697.68251067,0.00015895,2]
[407771789,1772787038428,-618.51803201,0.00015895,2]
[407771790,1772787038440,-1185.066861,0.00015895,2]
[407771792,1772787038535,-2139346.70376944,0.00015895,2]
[407771793,1772787038545,-300.0,0.00015987,2]
[407771796,1772787038554,-300.0,0.00015987,2]
[407771798,1772787038564,-98323.6477,0.00015988,2]
[407771799,1772787038574,-5791.2265,0.00015988,2]
[407771802,1772787038584,-979.44155944,0.00015989,2]
[407771804,1772787038593,-639.91866216,0.00015989,2]
[407771806,1772787038603,-236.0938172,0.00015989,2]
[407771808,1772787038613,-200.0,0.00015995,2]
[407771810,1772787038623,-14676.68,0.00015995,2]
[407771812,1772787038634,-1565.73,0.00015995,2]
[407771814,1772787038643,-608.86,0.00015995,2]
[407771816,1772787038653,-23868.35,0.00015995,2]
[407771818,1772787038662,-415.66,0.00015995,2]
[407771820,1772787038672,-4999.99,0.00015995,2]
[407771822,1772787038682,-260.71,0.00015995,2]
[407771824,1772787038691,-1187.09,0.00015995,2]
[407771826,1772787038701,-2000.0,0.00016,2]
[407771828,1772787038711,-342.2318542,0.00016,2]
[407771830,1772787038720,-171.84,0.00016047,2]
[407771832,1772787038730,-9999.99,0.00016073,2]
[407771834,1772787038739,-7320.46,0.00016073,2]
[407771835,1772787038748,-299.99,0.00016073,2]
[407771837,1772787038758,-9999.99,0.00016073,2]
[407771839,1772787038770,-150.99,0.00016073,2]
[407771841,1772787038779,-9999.99,0.00016073,2]
[407771842,1772787038788,-350.24,0.00016073,2]
[407771843,1772787038799,-499.99,0.00016073,2]
[407771844,1772787038808,-312.02,0.00016073,2]
[407771845,1772787038818,-7582.43,0.00016073,2]
[407771846,1772787038828,-9999.99,0.00016073,2]
[407771847,1772787038839,-150.99,0.00016073,2]
[407771848,1772787038848,-500.0,0.00016073,2]
[407771849,1772787038858,-500.0,0.00016073,2]
[407771850,1772787038867,-500.30907238,0.00016073,2]
[407771851,1772787038877,-500.0,0.00016073,2]
[407771852,1772787038886,-500.0,0.00016073,2]
[407771853,1772787038896,-152.00387375,0.00016073,2]
[407771854,1772787038905,-500.0,0.00016073,2]
[407771855,1772787038914,-500.0,0.00016073,2]
[407771856,1772787038925,-500.0,0.00016073,2]
[407771857,1772787038934,-500.0,0.00016073,2]
[407771858,1772787038943,-151.0,0.00016079,2]
[407771859,1772787038952,-151.0,0.00016079,2]
[407771860,1772787038961,-151.0,0.00016079,2]
[407771861,1772787038971,-500.0,0.00016079,2]
[407771862,1772787038980,-151.0,0.00016079,2]
[407771863,1772787038990,-500.0,0.00016079,2]
[407771864,1772787038999,-151.0,0.00016079,2]
[407771865,1772787039009,-500.0,0.00016079,2]
[407771866,1772787039018,-151.0,0.00016079,2]
[407771867,1772787039028,-500.0,0.00016079,2]
[407771868,1772787039037,-151.0,0.00016079,2]
[407771869,1772787039046,-500.0,0.00016079,2]
[407771870,1772787039055,-151.0,0.00016079,2]
[407771871,1772787039064,-500.0,0.00016079,2]
[407771872,1772787039074,-151.0,0.00016079,2]
[407771873,1772787039083,-500.0,0.00016079,2]
[407771874,1772787039092,-151.0,0.00016079,2]
[407771875,1772787039101,-500.0,0.00016079,2]
[407771876,1772787039111,-151.0,0.00016079,2]
[407771877,1772787039120,-500.0,0.00016079,2]
[407771878,1772787039129,-500.0,0.00016079,2]
[407771879,1772787039138,-200.0,0.00016079,2]
[407771880,1772787039148,-500.0,0.00016079,2]
[407771881,1772787039157,-500.0,0.00016079,2]
[407771882,1772787039166,-500.0,0.00016079,2]
[407771883,1772787039175,-500.0,0.00016079,2]
[407771884,1772787039184,-500.0,0.00016079,2]
[407771885,1772787039194,-500.0,0.00016079,2]
[407771886,1772787039204,-500.0,0.00016079,2]
[407771887,1772787039213,-500.0,0.00016079,2]
[407771888,1772787039223,-500.0,0.00016079,2]
[407771889,1772787039232,-500.0,0.00016079,2]
[407771890,1772787039241,-357.60188806,0.00016079,2]
[407771891,1772787039250,-151.0,0.00016079,2]
[407771892,1772787039260,-502.28943527,0.00016079,2]
[407771893,1772787039269,-151.0,0.00016079,2]
[407771894,1772787039279,-151.0,0.00016079,2]
[407771895,1772787039288,-151.0,0.00016079,2]
[407771896,1772787039298,-151.0,0.00016079,2]
[407771897,1772787039307,-151.0,0.00016079,2]
[407771898,1772787039316,-151.0,0.00016079,2]
[407771899,1772787039326,-151.0,0.00016079,2]
[407771900,1772787039335,-151.0,0.00016079,2]
[407771901,1772787039345,-151.0,0.00016079,2]
[407771902,1772787039354,-151.0,0.00016079,2]
[407771903,1772787039364,-151.0,0.00016079,2]
[407771904,1772787039374,-151.0,0.00016079,2]
[407771905,1772787039383,-151.0,0.00016079,2]
[407771906,1772787039392,-151.0,0.00016079,2]
[407771907,1772787039401,-151.0,0.00016079,2]
[407771908,1772787039414,-151.0,0.00016079,2]
[407771909,1772787039425,-151.0,0.00016079,2]
[407771910,1772787039434,-151.0,0.00016079,2]
[407771911,1772787039446,-151.0,0.00016079,2]
[407771912,1772787039455,-196.15063916,0.00016079,2]
[407771913,1772787039464,-935.22,0.00016081,2]
[407771914,1772787039475,-166.66,0.00016081,2]
[407771915,1772787039484,-198.85155453,0.00016087,2]
[407771916,1772787039493,-571.28391644,0.00016087,2]
[407771917,1772787039502,-635.97347198,0.00016087,2]
[407771918,1772787039511,-635.97347198,0.00016087,2]
[407771919,1772787039522,-635.97347198,0.00016087,2]
[407771920,1772787039531,-635.97347198,0.00016087,2]
[407771921,1772787039548,-635.97347198,0.00016087,2]
[407771922,1772787039559,-635.97347198,0.00016087,2]
[407771923,1772787039569,-635.97347198,0.00016087,2]
[407771924,1772787039587,-635.97347198,0.00016087,2]
[407771925,1772787039600,-635.97347198,0.00016087,2]
[407771926,1772787039609,-635.97347198,0.00016087,2]
[407771927,1772787039618,-635.97347198,0.00016087,2]
[407771928,1772787039627,-635.97347198,0.00016087,2]
[407771929,1772787039636,-635.97347198,0.00016087,2]
[407771930,1772787039646,-635.97347198,0.00016087,2]
[407771931,1772787039655,-635.97347198,0.00016087,2]
[407771932,1772787039664,-635.97347198,0.00016087,2]
[407771933,1772787039673,-635.97347198,0.00016087,2]
[407771934,1772787039683,-635.97347198,0.00016087,2]
[407771935,1772787039692,-635.97347198,0.00016087,2]
[407771936,1772787039701,-635.97347198,0.00016087,2]
[407771937,1772787039710,-635.97347198,0.00016087,2]
[407771938,1772787039720,-635.97347198,0.00016087,2]
[407771939,1772787039729,-635.97347198,0.00016087,2]
[407771940,1772787039738,-635.97347198,0.00016087,2]
[407771941,1772787039750,-635.97347198,0.00016087,2]
[407771942,1772787039760,-635.97347198,0.00016087,2]
[407771943,1772787039769,-635.97347198,0.00016087,2]
[407771944,1772787039779,-635.97347198,0.00016087,2]
[407771945,1772787039788,-635.97347198,0.00016087,2]
[407771946,1772787039797,-635.97347198,0.00016087,2]
[407771947,1772787039806,-635.97347198,0.00016087,2]
[407771948,1772787039816,-635.97347198,0.00016087,2]
[407771949,1772787039825,-635.97347198,0.00016087,2]
[407771950,1772787039834,-635.97347198,0.00016087,2]
[407771951,1772787039844,-635.97347198,0.00016087,2]
[407771952,1772787039853,-635.97347198,0.00016087,2]
[407771953,1772787039862,-635.97347198,0.00016087,2]
[407771954,1772787039871,-635.97347198,0.00016087,2]
[407771955,1772787039880,-635.97347198,0.00016087,2]
[407771956,1772787039890,-635.97347198,0.00016087,2]
[407771957,1772787039899,-635.97347198,0.00016087,2]
[407771958,1772787039908,-635.97347198,0.00016087,2]
[407771959,1772787039919,-635.97347198,0.00016087,2]
[407771960,1772787039929,-635.97347198,0.00016087,2]
[407771961,1772787039938,-635.97347198,0.00016087,2]
[407771962,1772787039947,-635.97347198,0.00016087,2]
[407771963,1772787039956,-635.97347198,0.00016087,2]
[407771964,1772787039966,-635.97347198,0.00016087,2]
[407771965,1772787039975,-635.97347198,0.00016087,2]
[407771966,1772787039984,-635.97347198,0.00016087,2]
[407771967,1772787039994,-635.97347198,0.00016087,2]
[407771968,1772787040003,-1319.04957246,0.00016087,2]
[407771969,1772787040013,-1319.04957246,0.00016087,2]
[407771970,1772787040022,-1319.04957246,0.00016087,2]
[407771971,1772787040032,-1319.04957246,0.00016087,2]
[407771972,1772787040042,-1319.04957246,0.00016087,2]
[407771973,1772787040051,-1319.04957246,0.00016087,2]
[407771974,1772787040060,-1319.04957246,0.00016087,2]
[407771975,1772787040069,-1319.04957246,0.00016087,2]
[407771976,1772787040079,-1319.04957246,0.00016087,2]
[407771977,1772787040088,-1319.04957246,0.00016087,2]
[407771978,1772787040098,-1319.04957246,0.00016087,2]
[407771979,1772787040107,-1319.04957246,0.00016087,2]
[407771980,1772787040116,-1319.04957246,0.00016087,2]
[407771981,1772787040125,-1319.04957246,0.00016087,2]
[407771982,1772787040134,-1319.04957246,0.00016087,2]
[407771983,1772787040143,-1319.04957246,0.00016087,2]
[407771984,1772787040152,-1319.04957246,0.00016087,2]
[407771985,1772787040162,-1319.04957246,0.00016087,2]
[407771986,1772787040170,-1319.04957246,0.00016087,2]
[407771987,1772787040179,-1319.04957246,0.00016087,2]
[407771988,1772787040188,-1319.04957246,0.00016087,2]
[407771989,1772787040201,-1319.04957246,0.00016087,2]
[407771990,1772787040210,-1319.04957246,0.00016087,2]
[407771991,1772787040220,-1319.04957246,0.00016087,2]
[407771992,1772787040229,-1319.04957246,0.00016087,2]
[407771993,1772787040238,-1319.04957246,0.00016087,2]
[407771994,1772787040247,-1319.04957246,0.00016087,2]
[407771995,1772787040256,-1319.04957246,0.00016087,2]
[407771997,1772787040265,-1319.04957246,0.00016087,2]
[407771998,1772787040274,-1319.04957246,0.00016087,2]
[407771999,1772787040284,-1319.04957246,0.00016087,2]
[407772000,1772787040293,-1319.04957246,0.00016087,2]
[407772001,1772787040302,-1319.04957246,0.00016087,2]
[407772002,1772787040312,-1319.04957244,0.00016087,2]
[407772003,1772787040321,-1319.04957244,0.00016087,2]
[407772004,1772787040331,-1319.04957244,0.00016087,2]
[407772005,1772787040340,-500.0,0.00016088,2]
[407772006,1772787040350,-202.59866348,0.00016088,2]
[407772007,1772787040360,-500.0,0.00016088,2]
[407772008,1772787040745,-361.14472166,0.00016088,2]
[407772009,1772787040760,-15955.18612994,0.00016088,2]
[407772010,1772787040770,-827.35,0.00016088,2]
[407772011,1772787040779,-2198.847,0.00016088,2]
[407772012,1772787040789,-151.25,0.00016088,2]
[407772013,1772787040798,-111610.851,0.00016089,2]
[407772014,1772787040807,-2000.0,0.000161,2]
[407772015,1772787040818,-7979.49,0.00016116,2]
[407772016,1772787040828,-500.62982044,0.00016173,2]
[407772017,1772787040838,-308.33409821,0.00016173,2]
[407772018,1772787040850,-500.0,0.00016199,2]
[407772019,1772787040860,-306.66567775,0.00016199,2]
[407772020,1772787040869,-500.0,0.00016199,2]
[407772021,1772787040879,-500.0,0.00016199,2]
[407772022,1772787040888,-283.81037588,0.00016199,2]
[407772023,1772787040897,-500.0,0.00016199,2]
[407772024,1772787040907,-500.0,0.00016199,2]
[407772025,1772787040916,-500.0,0.00016199,2]
[407772026,1772787040925,-500.0,0.00016199,2]
[407772027,1772787040934,-500.0,0.00016199,2]
[407772028,1772787040944,-500.0,0.00016199,2]
[407772029,1772787040954,-500.0,0.00016199,2]
[407772030,1772787040963,-500.0,0.00016199,2]
[407772031,1772787040972,-500.0,0.00016199,2]
[407772032,1772787040980,-500.0,0.00016199,2]
[407772033,1772787040990,-515.53321207,0.00016199,2]
[407772034,1772787040999,-230.98606825,0.00016199,2]
[407772035,1772787041009,-2000.0,0.000162,2]
[407772036,1772787041018,-4238.85646128,0.00016264,2]
[407772037,1772787041027,-2000.0,0.000163,2]
[407772038,1772787041036,-1250.0,0.00016349,2]
[407772039,1772787041046,-827.35,0.00016362,2]
[407772040,1772787041056,-723.0,0.00016367,2]
[407772041,1772787041064,-796.38690906,0.00016381,2]
[407772042,1772787041074,-193.0,0.00016393,2]
[407772043,1772787041084,-2000.0,0.000164,2]
[407772044,1772787041098,-979.44155939,0.00016424,2]
[407772045,1772787041107,-1771.0,0.00016425,2]
[407772046,1772787041117,-1736.0,0.00016425,2]
[407772047,1772787041127,-574.14861841,0.00016451,3]
[407772048,1772787041136,-1425.05393734,0.00016451,3]
[407772049,1772787041146,-1241.71373958,0.00016451,3]
[407772050,1772787041156,-1380.81450598,0.00016451,3]
[407772051,1772787041165,-223.95885275,0.00016451,3]
[407772052,1772787041175,-413.13303746,0.00016451,3]
[407772053,1772787041184,-1525.4761976,0.00016451,3]
[407772054,1772787041193,-969.30461753,0.00016451,3]
[407772055,1772787041203,-1268.21849933,0.00016451,3]
[407772056,1772787041212,-935.22,0.00016464,2]
[407772057,1772787041222,-166.66,0.00016477,2]
[407772058,1772787041231,-2000.0,0.000165,2]
[407772059,1772787041242,-639.91866215,0.00016548,2]
[407772060,1772787041252,-788.29,0.00016579,2]
[407772061,1772787041263,-2000.0,0.000166,2]
[407772062,1772787041272,-500.0,0.00016621,2]
[407772063,1772787041282,-1000.0,0.00016621,2]
[407772064,1772787041291,-1000.0,0.00016621,2]
[407772065,1772787041300,-500.0,0.00016621,2]
[407772066,1772787041310,-1000.0,0.00016621,2]
[407772067,1772787041320,-1000.0,0.00016621,2]
[407772068,1772787041330,-427.60857695,0.00016621,2]
[407772069,1772787041339,-200.0,0.00016627,2]
[407772070,1772787041349,-827.35,0.00016636,2]
[407772071,1772787041358,-2000.0,0.000167,2]
[407772072,1772787041368,-156.62,0.0001679,2]
[407772073,1772787041378,-2000.0,0.000168,2]
[407772074,1772787041387,-2000.0,0.000168,2]
[407772075,1772787041397,-229.08,0.00016812,2]
[407772076,1772787041406,-935.22,0.00016846,2]
[407772077,1772787041415,-979.44155939,0.00016858,2]
[407772078,1772787041425,-171.84,0.00016892,2]
[407772079,1772787041434,-2000.0,0.000169,2]
[407772080,1772787041443,-2000.0,0.000169,2]
[407772081,1772787041453,-2000.0,0.000169,2]
[407772082,1772787041462,-827.35,0.0001691,2]
[407772083,1772787041472,-1600.0,0.00016999,2]
[407772084,1772787041482,-300.0,0.00017,2]
[407772085,1772787041492,-166.66,0.00017004,2]
[407772086,1772787041502,-3388.83143379,0.00017015,2]
[407772087,1772787041511,-219.73015263,0.00017015,2]
[407772088,1772787041521,-721.12765535,0.00017015,2]
[407772089,1772787041530,-1000.0,0.00017015,2]
[407772090,1772787041540,-250.0,0.00017015,2]
[407772091,1772787041550,-250.0,0.00017015,2]
[407772092,1772787041560,-250.0,0.00017015,2]
[407772093,1772787041569,-250.0,0.00017015,2]
[407772094,1772787041580,-500.0,0.00017015,2]
[407772095,1772787041589,-250.0,0.00017015,2]
[407772096,1772787041599,-500.0,0.00017015,2]
[407772097,1772787041609,-250.0,0.00017015,2]
[407772098,1772787041619,-250.0,0.00017015,2]
[407772099,1772787041632,-500.0,0.00017015,2]
[407772100,1772787041641,-250.0,0.00017015,2]
[407772101,1772787041651,-500.0,0.00017015,2]
[407772102,1772787041660,-250.0,0.00017015,2]
[407772103,1772787041669,-500.0,0.00017015,2]
[407772104,1772787041678,-250.0,0.00017015,2]
[407772105,1772787041688,-500.0,0.00017015,2]
[407772106,1772787041697,-250.0,0.00017015,2]
[407772107,1772787041707,-500.0,0.00017015,2]
[407772108,1772787041716,-500.0,0.00017015,2]
[407772109,1772787041725,-250.0,0.00017015,2]
[407772110,1772787041735,-500.0,0.00017015,2]
[407772111,1772787041744,-500.0,0.00017015,2]
[407772112,1772787041758,-500.0,0.00017015,2]
[407772113,1772787041767,-1000.0,0.00017015,2]
[407772114,1772787041776,-1000.0,0.00017015,2]
[407772115,1772787041786,-1000.0,0.00017015,2]
[407772116,1772787041797,-1000.0,0.00017015,2]
[407772117,1772787041807,-1000.0,0.00017015,2]
[407772118,1772787041816,-1000.0,0.00017015,2]
[407772119,1772787041826,-1000.0,0.00017015,2]
[407772120,1772787041836,-578.20924308,0.00017015,2]
[407772121,1772787041845,-1000.0,0.00017015,2]
[407772122,1772787041854,-1000.0,0.00017015,2]
[407772123,1772787041863,-1000.0,0.00017015,2]
[407772124,1772787041872,-1000.0,0.00017015,2]
[407772125,1772787041882,-271.67882507,0.00017015,2]
[407772126,1772787041891,-151.0,0.00017015,2]
[407772127,1772787041900,-300.0,0.00017015,2]
[407772128,1772787041909,-151.0,0.00017015,2]
[407772129,1772787041918,-300.0,0.00017015,2]
[407772130,1772787041927,-151.0,0.00017015,2]
[407772131,1772787041936,-305.95163096,0.00017015,2]
[407772132,1772787041945,-151.0,0.00017015,2]
[407772133,1772787041955,-151.0,0.00017015,2]
[407772134,1772787041964,-151.0,0.00017015,2]
[407772135,1772787041973,-151.0,0.00017015,2]
[407772136,1772787041982,-693.3919763,0.00017015,2]
[407772137,1772787041991,-151.0,0.00017015,2]
[407772138,1772787042001,-151.0,0.00017015,2]
[407772139,1772787042009,-174.61919141,0.00017015,2]
[407772140,1772787042019,-262.90206542,0.00017015,2]
[407772141,1772787042028,-250.0,0.00017015,2]
[407772142,1772787042037,-250.0,0.00017015,2]
[407772143,1772787042046,-500.0,0.00017015,2]
[407772144,1772787042056,-250.0,0.00017015,2]
[407772145,1772787042065,-500.0,0.00017015,2]
[407772146,1772787042075,-250.0,0.00017015,2]
[407772147,1772787042085,-500.0,0.00017015,2]
[407772148,1772787042094,-250.0,0.00017015,2]
[407772149,1772787042103,-500.0,0.00017015,2]
[407772150,1772787042113,-250.0,0.00017015,2]
[407772151,1772787042122,-500.0,0.00017015,2]
[407772152,1772787042132,-250.0,0.00017015,2]
[407772153,1772787042142,-508.72212285,0.00017015,2]
[407772154,1772787042151,-503.01170887,0.00017015,2]
[407772155,1772787042160,-743.50770149,0.00017015,2]
[407772156,1772787042170,-209.40437685,0.00017015,2]
[407772157,1772787042179,-698.27174692,0.00017015,2]
[407772158,1772787042188,-500.0,0.00017015,2]
[407772159,1772787042198,-500.0,0.00017015,2]
[407772160,1772787042206,-500.0,0.00017015,2]
[407772161,1772787042215,-500.0,0.00017015,2]
[407772162,1772787042224,-500.0,0.00017015,2]
[407772163,1772787042233,-500.0,0.00017015,2]
[407772164,1772787042242,-269.917619,0.00017015,2]
[407772165,1772787042251,-500.0,0.00017015,2]
[407772166,1772787042259,-500.0,0.00017015,2]
[407772167,1772787042268,-500.0,0.00017015,2]
[407772168,1772787042277,-500.0,0.00017015,2]
[407772169,1772787042286,-500.0,0.00017015,2]
[407772170,1772787042295,-156.62,0.0001706,2]
[407772171,1772787042304,-482.54904897,0.00017068,2]
[407772172,1772787042500,-17.45095103,0.00017068,2]
[407772173,1772787042509,-719.04747942,0.0001707,2]
[407772174,1772787042518,-510.0,0.00017106,2]
[407772175,1772787042526,-639.91866215,0.00017106,2]
[407772176,1772787042535,-745.65223616,0.00017125,2]
[407772177,1772787042544,-1500.0,0.00017168,2]
[407772178,1772787042553,-168.3299599,0.00017168,2]
[407772179,1772787042562,-1500.0,0.00017168,2]
[407772180,1772787042571,-1500.0,0.00017168,2]
[407772181,1772787042580,-200.0,0.00017175,2]
[407772182,1772787042590,-773.2413689,0.0001718,2]
[407772183,1772787042599,-827.35,0.00017184,2]
[407772184,1772787042609,-200.0,0.0001723,2]
[407772185,1772787042619,-801.85129955,0.00017235,2]
[407772186,1772787042630,-500.0,0.00017253,2]
[407772187,1772787042640,-500.0,0.00017253,2]
[407772188,1772787042649,-500.0,0.00017253,2]
[407772189,1772787042659,-500.0,0.00017253,2]
[407772190,1772787042668,-500.0,0.00017253,2]
[407772191,1772787042677,-500.0,0.00017253,2]
[407772192,1772787042686,-831.51979763,0.0001729,2]
[407772193,1772787042695,-979.44155939,0.00017293,2]
[407772194,1772787042704,-156.62,0.0001733,2]
[407772195,1772787042712,-862.28603014,0.00017345,2]
[407772196,1772787042722,-500.0,0.00017347,2]
[407772197,1772787042730,-500.0,0.00017347,2]
[407772198,1772787042739,-500.0,0.00017371,2]
[407772199,1772787042748,-500.0,0.00017371,2]
[407772200,1772787042759,-420.0,0.00017379,2]
[407772201,1772787042768,-894.19061326,0.000174,2]
[407772202,1772787042778,-927.27566595,0.00017455,2]
[407772203,1772787042786,-827.35,0.00017458,2]
[407772204,1772787042796,-1680.0,0.00017466,2]
[407772205,1772787042805,-250.0,0.00017483,2]
[407772206,1772787042814,-300.0,0.00017484,2]
[407772207,1772787042824,-12133.55,0.0001751,7]
[407772208,1772787042833,-961.58486559,0.0001751,2]
[407772209,1772787042842,-166.66,0.0001753,2]
[407772210,1772787042851,-250.0,0.0001754,2]
[407772211,1772787042861,-1000.0,0.00017563,2]
[407772212,1772787042871,-181.08010149,0.00017563,2]
[407772213,1772787042882,-272.62944185,0.00017563,2]
[407772214,1772787042891,-997.16350561,0.00017565,2]
[407772215,1772787042900,-193.0,0.0001757,2]
[407772216,1772787042909,-500.0,0.0001757,2]
[407772217,1772787042918,-4287.35030443,0.0001757,2]
[407772218,1772787042927,-250.0,0.0001757,2]
[407772219,1772787042936,-2500.0,0.00017586,2]
[407772220,1772787042945,-2500.0,0.00017586,2]
[407772221,1772787042953,-2422.62484668,0.00017586,2]
[407772222,1772787042963,-5000.0,0.00017586,2]
[407772223,1772787042972,-300.0,0.00017586,2]
[407772224,1772787042981,-156.62,0.000176,2]
[407772225,1772787042990,-200.0,0.00017652,2]
[407772226,1772787042999,-639.91866215,0.00017665,2]
[407772227,1772787043008,-1402.19853182,0.00017716,2]
[407772228,1772787043016,-2000.0,0.00017716,2]
[407772229,1772787043025,-1287.80347915,0.00017716,2]
[407772230,1772787043034,-979.44155939,0.00017727,2]
[407772231,1772787043043,-827.35,0.00017732,2]
[407772232,1772787043051,-171.84,0.00017737,2]
[407772233,1772787043060,-1056.1229892,0.00017801,2]
[407772234,1772787043069,-1000.0,0.00017801,2]
[407772235,1772787043079,-1000.0,0.00017801,2]
[407772236,1772787043088,-1000.0,0.00017801,2]
[407772239,1772787043097,-1000.0,0.00017801,2]
[407772242,1772787043106,-705.88057451,0.00017801,2]
[407772244,1772787043114,-156.62,0.0001787,2]
[407772245,1772787043123,-1000.0,0.00017895,2]
[407772246,1772787043132,-1030.88059829,0.00017895,2]
[407772247,1772787043141,-1000.0,0.00017919,2]
[407772248,1772787043150,-494.64624274,0.00017919,2]
[407772249,1772787043159,-876.76,0.0001794,2]
[407772250,1772787043169,-788.29,0.00017949,2]
[407772251,1772787043178,-827.35,0.00018005,2]
[407772252,1772787043187,-9100.16,0.00018035,7]
[407772253,1772787043197,-388.0,0.00018055,2]
[407772255,1772787043206,-166.66,0.00018057,2]
[407772256,1772787043216,-1000.0,0.00018111,2]
[407772257,1772787043225,-187.78006525,0.00018111,2]
[407772258,1772787043234,-282.71673119,0.00018111,2]
[407772259,1772787043242,-500.0,0.00018137,2]
[407772260,1772787043252,-156.62,0.0001814,2]
[407772261,1772787043260,-979.44155939,0.00018162,2]
[407772262,1772787043270,-780.83,0.00018165,2]
[407772263,1772787043280,-876.76,0.00018214,2]
[407772264,1772787043289,-639.91866215,0.00018224,2]
[407772265,1772787043299,-2500.0,0.00018264,2]
[407772266,1772787043308,-866.0,0.00018305,2]
[407772267,1772787043317,-1500.0,0.00018349,2]
[407772268,1772787043327,-1500.0,0.00018349,2]
[407772269,1772787043339,-1500.0,0.00018349,2]
[407772270,1772787043348,-1500.0,0.00018349,2]
[407772271,1772787043358,-847.0,0.000184,2]
[407772272,1772787043368,-160.0,0.000184,2]
[407772273,1772787043379,-847.0,0.000184,2]
[407772274,1772787043388,-156.62,0.0001841,2]
[407772275,1772787043398,-780.83,0.00018439,2]
[407772276,1772787043408,-1134.58548457,0.00018443,2]
[407772277,1772787043417,-1500.0,0.00018466,2]
[407772278,1772787043428,-876.76,0.00018488,2]
[407772279,1772787043437,-15000.0,0.000185,7]
[407772280,1772787043446,-6066.77,0.00018561,7]
[407772281,1772787043455,-171.84,0.00018581,2]
[407772282,1772787043465,-166.66,0.00018583,2]
[407772283,1772787043475,-979.44155939,0.00018596,2]
[407772284,1772787043484,-1000.0,0.00018659,2]
[407772285,1772787043493,-194.72792766,0.00018659,2]
[407772286,1772787043502,-293.17725025,0.00018659,2]
[407772287,1772787043511,-156.62,0.0001868,2]
[407772288,1772787043520,-892.93,0.00018713,2]
[407772289,1772787043530,-847.0,0.0001872,2]
[407772290,1772787043539,-2803.0,0.0001872,2]